fUSD/lending_fUSD_20240625
["ID","MTS","AMOUNT","RATE_DAILY","PERIOD"]
[330394868,1719346077767,-180.23194071,0.00041725,30]
[330394869,1719346077791,-150.0,0.00041729,30]
[330394870,1719346077814,-150.0,0.00041735,30]
[330394871,1719346077838,-212.80519448,0.00041736,30]
[330394872,1719346077862,-150.0,0.00041755,120]
[330394873,1719346077891,-150.0,0.00041763,30]
[330394874,1719346077915,-415.64182779,0.00041772,30]
[330394875,1719346077938,-180.23194071,0.00041772,30]
[330394876,1719346077964,-190.29395068,0.00041783,30]
[330394877,1719346077987,-150.0,0.00041783,30]
[330394878,1719346078010,-151.92007356,0.00041789,30]
[330394879,1719346078033,-550.0,0.000418,31]
[330394880,1719346078057,-415.64182779,0.00041818,30]
[330394881,1719346078079,-180.23194071,0.00041818,30]
[330394882,1719346078102,-150.0,0.00041824,30]
[330394883,1719346078125,-150.0,0.00041831,30]
[330394884,1719346078148,-415.64182779,0.00041865,30]
[330394885,1719346078171,-180.23194071,0.00041865,30]
[330394886,1719346078193,-150.97304623,0.00041867,30]
[330394887,1719346078216,-150.0,0.00041879,30]
[330394888,1719346078240,-151.0,0.0004188,30]
[330394889,1719346078263,-151.0,0.0004188,30]
[330394890,1719346078286,-151.0,0.0004188,30]
[330394891,1719346078310,-296.0,0.0004188,30]
[330394892,1719346078332,-150.0,0.00041884,30]
[330394893,1719346078356,-600.0,0.0004189,30]
[330394894,1719346078380,-1608.2562724,0.0004189,30]
[330394895,1719346078404,-150.0,0.00041893,30]
[330394896,1719346078428,-926.0,0.00041904,30]
[330394897,1719346078451,-415.64182779,0.00041911,30]
[330394898,1719346078475,-180.23194071,0.00041911,30]
[330394899,1719346078501,-510.0,0.00041917,120]
[330394900,1719346078527,-150.0,0.00041927,30]
[330394901,1719346078551,-150.0,0.00041945,30]
[330394902,1719346078575,-415.64182779,0.00041958,30]
[330394903,1719346078599,-180.23194071,0.00041958,30]
[330394904,1719346078623,-154.11083982,0.00041973,30]
[330394905,1719346078648,-150.0,0.00041975,30]
[330394906,1719346078672,-150.97008216,0.00041991,30]
[330394907,1719346078696,-637.90731973,0.00041993,30]
[330394908,1719346078720,-337.2511616,0.00042,120]
[330394909,1719346078746,-962.0130262,0.00042,120]
[330394910,1719346078769,-250.74651447,0.00042,120]
[330394911,1719346078794,-400.0,0.00042,14]
[330394912,1719346078818,-154.28265748,0.00042003,30]
[330394913,1719346078843,-415.64182779,0.00042004,30]
[330394914,1719346078869,-180.23194071,0.00042004,30]
[330394915,1719346078895,-150.0,0.00042005,30]
[330394916,1719346078919,-150.0,0.00042023,30]
[330394917,1719346078946,-637.90731973,0.0004203,30]
[330394918,1719346078974,-155.69335686,0.00042035,30]
[330394919,1719346078999,-190.29395068,0.00042046,30]
[330394920,1719346079023,-415.64182779,0.00042051,30]
[330394921,1719346079046,-180.23194071,0.00042051,30]
[330394922,1719346079071,-150.0,0.00042057,30]
[330394923,1719346079096,-150.0,0.00042066,30]
[330394924,1719346079120,-150.0,0.00042071,30]
[330394925,1719346079144,-415.64182779,0.00042097,30]
[330394926,1719346079168,-180.23194071,0.00042097,30]
[330394927,1719346079192,-166.66666666,0.00042099,30]
[330394928,1719346079220,-572.12138684,0.00042112,30]
[330394929,1719346079247,-159.44211135,0.00042113,30]
[330394930,1719346079271,-150.0,0.00042119,30]
[330394931,1719346079295,-152.93470143,0.00042125,30]
[330394932,1719346079319,-150.0,0.00042126,30]
[330394933,1719346079343,-166.66666666,0.00042131,30]
[330394934,1719346079367,-172.18888889,0.00042137,120]
[330394935,1719346079391,-572.12138684,0.00042142,30]
[330394936,1719346079417,-415.64182779,0.00042143,30]
[330394937,1719346079442,-180.23194071,0.00042143,30]
[330394938,1719346079466,-1100.0,0.00042164,30]
[330394939,1719346079492,-500.0,0.00042164,30]
[330394940,1719346079516,-500.0,0.00042164,30]
[330394941,1719346079541,-150.0,0.00042167,30]
[330394942,1719346079566,-166.66666666,0.00042174,30]
[330394943,1719346079590,-151.92007356,0.00042181,30]
[330394944,1719346079616,-150.0,0.00042187,30]
[330394945,1719346079641,-415.64182779,0.0004219,30]
[330394946,1719346079664,-180.23194071,0.0004219,30]
[330394947,1719346079691,-220.3233846,0.00042191,120]
[330394948,1719346080025,-150.0,0.00042215,30]
[330394949,1719346080052,-150.0,0.00042221,30]
[330394950,1719346080078,-415.64182779,0.00042236,30]
[330394951,1719346080105,-180.23194071,0.00042236,30]
[330394952,1719346080130,-250.0,0.00042246,90]
[330394953,1719346080155,-250.0,0.00042246,90]
[330394954,1719346080181,-151.0,0.00042247,120]
[330394955,1719346080206,-150.0,0.00042247,30]
[330394956,1719346080232,-150.0,0.00042263,30]
[330394957,1719346080261,-415.64182779,0.00042283,30]
[330394958,1719346080291,-180.23194071,0.00042283,30]
[330394959,1719346080330,-560.061986,0.000423,32]
[330394960,1719346080355,-150.0,0.00042308,30]
[330394961,1719346080382,-150.0,0.0004231,30]
[330394962,1719346080406,-1618.89586169,0.0004232,60]
[330394963,1719346080431,-415.64182779,0.00042329,30]
[330394964,1719346080455,-180.23194071,0.00042329,30]
[330394965,1719346080479,-926.0,0.00042336,30]
[330394966,1719346080505,-150.0,0.00042358,30]
[330394967,1719346080530,-150.0,0.00042368,30]
[330394968,1719346080554,-166.66666666,0.0004237,30]
[330394969,1719346080579,-415.64182779,0.00042376,30]
[330394970,1719346080603,-180.23194071,0.00042376,30]
[330394971,1719346080628,-150.0,0.00042386,30]
[330394972,1719346080654,-150.0,0.00042406,30]
[330394973,1719346080679,-415.64182779,0.00042422,30]
[330394974,1719346080705,-180.23194071,0.00042422,30]
[330394975,1719346080730,-150.0,0.00042429,30]
[330394976,1719346080754,-600.0,0.00042438,30]
[330394977,1719346080779,-150.0,0.00042454,30]
[330394978,1719346080804,-1000.0,0.00042465,40]
[330394979,1719346080829,-415.64182779,0.00042469,30]
[330394980,1719346080854,-180.23194071,0.00042469,30]
[330394981,1719346080880,-150.0,0.00042489,30]
[330394982,1719346080904,-150.0,0.00042502,30]
[330394983,1719346080931,-415.64182779,0.00042515,30]
[330394984,1719346080956,-180.23194071,0.00042515,30]
[330394985,1719346080982,-150.0,0.00042522,120]
[330394986,1719346081007,-150.0,0.0004255,30]
[330394987,1719346081034,-150.0,0.0004255,30]
[330394988,1719346081059,-150.0,0.0004255,30]
[330394989,1719346081082,-150.0,0.0004255,30]
[330394990,1719346081106,-415.64182779,0.00042562,30]
[330394991,1719346081130,-180.23194071,0.00042562,30]
[330394992,1719346081154,-150.0,0.00042598,30]
[330394993,1719346081178,-415.64182779,0.00042608,30]
[330394994,1719346081203,-180.23194071,0.00042608,30]
[330394995,1719346081228,-150.0,0.00042611,30]
[330394996,1719346081256,-150.0,0.00042646,30]
[330394997,1719346081280,-388.72473332,0.00042646,30]
[330394998,1719346081304,-415.64182779,0.00042655,30]
[330394999,1719346081327,-180.23194071,0.00042655,30]
[330395000,1719346081350,-150.0,0.00042671,30]
[330395001,1719346081374,-1746.143023,0.0004268,19]
[330395002,1719346081397,-150.0,0.00042694,30]
[330395003,1719346081422,-760.06700782,0.000427,33]
[330395004,1719346081447,-156.38,0.000427,33]
[330395005,1719346081473,-156.38,0.000427,33]
[330395006,1719346081500,-156.38,0.000427,33]
[330395007,1719346081526,-1000.0,0.000427,19]
[330395008,1719346081555,-500.0,0.00042701,30]
[330395009,1719346081580,-500.0,0.00042701,30]
[330395010,1719346081604,-500.0,0.00042701,30]
[330395011,1719346081629,-707.0,0.00042701,30]
[330395012,1719346081653,-415.64182779,0.00042701,30]
[330395013,1719346081677,-180.23194071,0.00042701,30]
[330395014,1719346081700,-1100.0,0.00042712,30]
[330395015,1719346081724,-500.0,0.00042712,30]
[330395016,1719346081751,-500.0,0.00042712,30]
[330395017,1719346081775,-150.0,0.00042714,30]
[330395018,1719346081800,-1000.0,0.0004272,19]
[330395019,1719346081825,-150.0,0.00042732,30]
[330395020,1719346081920,-637.90731973,0.00042732,30]
[330395021,1719346081944,-1000.0,0.0004274,19]
[330395022,1719346081971,-190.29395068,0.00042741,30]
[330395023,1719346081995,-150.0,0.00042742,30]
[330395024,1719346082018,-415.64182779,0.00042747,30]
[330395025,1719346082042,-180.23194071,0.00042747,30]
[330395026,1719346082066,-155.69335686,0.00042751,30]
[330395027,1719346082090,-154.11083982,0.00042754,30]
[330395028,1719346082114,-1000.0,0.0004276,19]
[330395029,1719346082138,-926.0,0.00042768,30]
[330395030,1719346082162,-3549.64264287,0.00042778,30]
[330395031,1719346082186,-1000.0,0.0004278,19]
[330395032,1719346082210,-212.80519448,0.00042787,30]
[330395033,1719346082235,-150.0,0.0004279,30]
[330395034,1719346082258,-150.0,0.00042792,30]
[330395035,1719346082282,-415.64182779,0.00042794,30]
[330395036,1719346082310,-180.23194071,0.00042794,30]
[330395037,1719346082333,-1000.0,0.000428,19]
[330395038,1719346082359,-154.11083982,0.00042813,30]
[330395039,1719346082383,-1000.0,0.0004282,19]
[330395040,1719346082407,-150.0,0.00042838,30]
[330395041,1719346082431,-1000.0,0.0004284,19]
[330395042,1719346082457,-1248.714341,0.0004284,19]
[330395043,1719346082484,-415.64182779,0.0004284,30]
[330395044,1719346082510,-180.23194071,0.0004284,30]
[330395045,1719346082538,-150.0,0.00042849,120]
[330395046,1719346082562,-172.18888889,0.00042849,120]
[330395047,1719346082585,-150.0,0.00042853,30]
[330395048,1719346082610,-150.0,0.00042858,120]
[330395049,1719346082634,-1000.0,0.0004286,19]
[330395050,1719346082658,-1000.0,0.0004286,19]
[330395051,1719346082681,-150.0,0.00042879,30]
[330395052,1719346082705,-206.53307355,0.0004288,120]
[330395053,1719346082727,-1000.0,0.0004288,19]
[330395054,1719346082750,-1000.0,0.0004288,19]
[330395055,1719346082773,-150.0,0.00042885,30]
[330395056,1719346082797,-415.64182779,0.00042887,30]
[330395057,1719346082821,-180.23194071,0.00042887,30]
[330395058,1719346082845,-166.66666667,0.00042895,30]
[330395059,1719346082873,-878.25515313,0.000429,120]
[330395060,1719346082900,-803.94523987,0.000429,30]
[330395061,1719346082927,-1000.0,0.000429,19]
[330395062,1719346082954,-1000.0,0.000429,19]
[330395063,1719346082978,-153.931342,0.000429,48]
[330395064,1719346083003,-200.0,0.000429,18]
[330395065,1719346083026,-150.97008216,0.00042909,30]
[330395066,1719346083050,-150.0,0.00042913,30]
[330395067,1719346083073,-415.64182779,0.00042933,30]
[330395068,1719346083096,-150.0,0.00042933,30]
[330395069,1719346083119,-150.0,0.00042933,30]
[330395070,1719346083142,-180.23194071,0.00042933,30]
[330395071,1719346083164,-150.0,0.00042933,30]
[330395072,1719346083187,-212.80519448,0.00042959,30]
[330395073,1719346083210,-150.0,0.00042974,30]
[330395074,1719346083238,-415.64182779,0.0004298,30]
[330395075,1719346083261,-180.23194071,0.0004298,30]
[330395076,1719346083284,-150.0,0.00042981,30]
[330395077,1719346083306,-600.0,0.00042986,30]
[330395078,1719346083329,-1318.84579151,0.00043,14]
[330395079,1719346083352,-402.6004247,0.00043,30]
[330395080,1719346083375,-257.8398514,0.00043,31]
[330395081,1719346083398,-1188.03012745,0.00043,30]
[330395082,1719346083422,-572.12138684,0.00043011,30]
[330395083,1719346083447,-415.64182779,0.00043026,30]
[330395084,1719346083470,-180.23194071,0.00043026,30]
[330395085,1719346083493,-150.0,0.00043029,30]
[330395086,1719346083516,-256.00974718,0.00043031,30]
[330395087,1719346083538,-150.0,0.00043034,30]
[330395088,1719346083561,-150.0,0.00043043,30]
[330395089,1719346083584,-190.29395068,0.0004306,30]
[330395090,1719346083606,-415.64182779,0.00043073,30]
[330395091,1719346083630,-180.23194071,0.00043073,30]
[330395092,1719346083654,-150.0,0.00043077,30]
[330395093,1719346083677,-150.0,0.00043095,30]
[330395094,1719346083700,-297.56744919,0.00043098,120]
[330395095,1719346083723,-415.64182779,0.00043119,30]
[330395096,1719346083747,-180.23194071,0.00043119,30]
[330395097,1719346083771,-150.0,0.00043125,30]
[330395098,1719346083799,-256.00974718,0.00043139,30]
[330395099,1719346083822,-150.0,0.00043155,30]
[330395100,1719346083845,-388.72473332,0.00043159,30]
[330395101,1719346083874,-415.64182779,0.00043166,30]
[330395102,1719346083897,-180.23194071,0.00043166,30]
[330395103,1719346083922,-150.0,0.00043168,120]
[330395104,1719346083949,-150.0,0.00043173,30]
[330395105,1719346083974,-637.90731973,0.00043185,30]
[330395106,1719346083998,-926.0,0.000432,30]
[330395107,1719346084021,-675.9159818,0.000432,30]
[330395108,1719346084044,-150.0,0.00043207,30]
[330395109,1719346084067,-415.64182779,0.00043212,30]
[330395110,1719346084091,-180.23194071,0.00043212,30]
[330395111,1719346084115,-150.0,0.00043214,120]
[330395112,1719346084139,-150.0,0.00043216,30]
[330395113,1719346084164,-150.0,0.00043221,30]
[330395114,1719346084187,-155.177234,0.00043221,30]
[330395115,1719346084212,-151.10940015,0.00043238,30]
[330395116,1719346084234,-152.20122713,0.00043244,30]
[330395117,1719346084260,-415.64182779,0.00043259,30]
[330395118,1719346084287,-180.23194071,0.00043259,30]
[330395119,1719346084311,-1100.0,0.0004326,30]
[330395120,1719346084336,-500.0,0.0004326,30]
[330395121,1719346084359,-310.15733678,0.0004326,30]
[330395122,1719346084384,-150.0,0.00043269,30]
[330395123,1719346084408,-150.0,0.00043276,30]
[330395124,1719346084433,-150.0,0.00043294,120]
[330395125,1719346084592,-150.0,0.00043296,120]
[330395126,1719346084621,-415.64182779,0.00043305,30]
[330395127,1719346084647,-180.23194071,0.00043305,30]
[330395128,1719346084672,-150.0,0.00043317,30]
[330395129,1719346084697,-150.97008216,0.0004333,30]
[330395130,1719346084721,-155.42704866,0.00043333,30]
[330395131,1719346084754,-150.0,0.00043337,30]
[330395132,1719346084778,-154.2826575,0.00043348,30]
[330395133,1719346084803,-415.64182779,0.00043352,30]
[330395134,1719346084827,-180.23194071,0.00043352,30]
[330395135,1719346084852,-150.0,0.00043365,30]
[330395136,1719346084880,-151.0,0.0004337,120]
[330395137,1719346084906,-150.0,0.00043371,30]
[330395138,1719346084936,-150.0,0.00043394,120]
[330395139,1719346084964,-150.0,0.00043397,30]
[330395140,1719346084991,-415.64182779,0.00043398,30]
[330395141,1719346085017,-180.23194071,0.00043398,30]
[330395142,1719346085042,-1661.55160136,0.000434,120]
[330395143,1719346085067,-181.2476433,0.00043404,30]
[330395144,1719346085091,-150.0,0.00043413,30]
[330395145,1719346085115,-171.41014845,0.00043425,30]
[330395146,1719346085140,-156.36496914,0.00043436,30]
[330395147,1719346085165,-415.64182779,0.00043444,30]
[330395148,1719346085190,-180.23194071,0.00043444,30]
[330395149,1719346085215,-150.0,0.00043458,30]
[330395150,1719346085242,-150.0,0.0004346,30]
[330395151,1719346085266,-415.64182779,0.00043491,30]
[330395152,1719346085290,-180.23194071,0.00043491,30]
[330395153,1719346085316,-212.80519448,0.00043495,30]
[330395154,1719346085342,-150.0,0.00043508,30]
[330395155,1719346085367,-150.0,0.00043518,30]
[330395156,1719346085391,-150.0,0.00043521,120]
[330395157,1719346085418,-600.0,0.00043534,30]
[330395158,1719346085441,-150.0,0.00043536,30]
[330395159,1719346085465,-415.64182779,0.00043537,30]
[330395160,1719346085492,-180.23194071,0.00043537,30]
[330395161,1719346085516,-155.69335686,0.00043541,30]
[330395162,1719346085541,-150.0,0.00043544,120]
[330395163,1719346085565,-150.0,0.00043556,30]
[330395164,1719346085589,-172.18888889,0.00043562,120]
[330395165,1719346085613,-159.5,0.00043573,30]
[330395166,1719346085638,-154.11083982,0.00043575,30]
[330395167,1719346085662,-150.0,0.00043579,30]
[330395168,1719346085686,-388.72473332,0.00043581,30]
[330395169,1719346085710,-415.64182779,0.00043584,30]
[330395170,1719346085734,-180.23194071,0.00043584,30]
[330395171,1719346085762,-150.0,0.00043604,30]
[330395172,1719346085786,-171.41014848,0.00043606,30]
[330395173,1719346085810,-415.64182779,0.0004363,30]
[330395174,1719346085836,-180.23194071,0.0004363,30]
[330395175,1719346085859,-926.0,0.00043632,30]
[330395176,1719346085888,-256.00974718,0.00043633,30]
[330395177,1719346085913,-150.0,0.00043639,30]
[330395178,1719346085936,-150.0,0.00043652,30]
[330395179,1719346085962,-415.64182779,0.00043677,30]
[330395180,1719346085986,-180.23194071,0.00043677,30]
[330395181,1719346086012,-1039.0,0.000437,30]
[330395182,1719346086037,-1039.0,0.000437,30]
[330395183,1719346086063,-1714.64424492,0.000437,120]
[330395184,1719346086088,-150.0,0.000437,30]
[330395185,1719346086113,-150.0,0.000437,30]
[330395186,1719346086138,-150.0,0.000437,30]
[330395187,1719346086181,-150.0,0.000437,30]
[330395188,1719346086210,-150.0,0.000437,30]
[330395189,1719346086238,-150.0,0.000437,30]
[330395190,1719346086268,-150.97008216,0.00043717,30]
[330395191,1719346086295,-415.64182779,0.00043723,30]
[330395192,1719346086321,-180.23194071,0.00043723,30]
[330395193,1719346086348,-150.0,0.00043748,30]
[330395194,1719346086374,-150.0,0.00043761,30]
[330395195,1719346086400,-415.64182779,0.0004377,30]
[330395196,1719346086429,-180.23194071,0.0004377,30]
[330395197,1719346086457,-212.80519448,0.00043775,30]
[330395198,1719346086484,-2000.0,0.00043781,30]
[330395199,1719346086513,-150.0,0.00043796,30]
[330395200,1719346086539,-151.92007356,0.00043797,30]
[330395201,1719346086565,-464.67458869,0.000438,30]
[330395202,1719346086591,-673.00565261,0.000438,120]
[330395203,1719346086618,-498.59078031,0.000438,120]
[330395204,1719346086643,-1756.43597823,0.000438,111]
[330395205,1719346086669,-1100.0,0.00043808,30]
[330395206,1719346086694,-250.0,0.00043808,100]
[330395207,1719346086718,-212.80519448,0.00043808,30]
[330395208,1719346086753,-500.0,0.00043808,30]
[330395209,1719346086780,-415.64182779,0.00043816,30]
[330395210,1719346086807,-180.23194071,0.00043816,30]
[330395211,1719346086833,-150.0,0.00043821,30]
[330395212,1719346086862,-150.97304623,0.00043832,30]
[330395213,1719346086894,-1121.16151936,0.00043835,30]
[330395214,1719346087401,-1000.0,0.00043835,45]
[330395215,1719346087428,-500.0,0.00043835,30]
[330395216,1719346087452,-500.0,0.00043835,120]
[330395217,1719346087478,-3401.0,0.00043835,120]
[330395218,1719346087507,-2798.64,0.00043835,120]
[330395219,1719346087533,-2798.64,0.00043835,120]
[330395220,1719346087558,-2798.64,0.00043835,120]
[330395221,1719346087583,-2798.64,0.00043835,120]
[330395222,1719346087608,-2798.64,0.00043835,120]
[330395223,1719346087634,-2798.64,0.00043835,120]
[330395224,1719346087660,-2798.64,0.00043835,120]
[330395225,1719346087686,-2798.64,0.00043835,120]
[330395226,1719346087713,-2798.64,0.00043835,120]
[330395227,1719346087741,-2798.64,0.00043835,120]
[330395228,1719346087767,-2798.64,0.00043835,120]
[330395229,1719346087794,-2798.64,0.00043835,120]
[330395230,1719346087819,-2798.64,0.00043835,120]
[330395231,1719346087844,-2798.64,0.00043835,120]
[330395232,1719346087874,-2798.64,0.00043835,120]
[330395233,1719346087901,-2798.64,0.00043835,120]
[330395234,1719346087929,-2798.64,0.00043835,120]
[330395235,1719346087957,-2798.64,0.00043835,120]
[330395236,1719346087983,-2798.64,0.00043835,120]
[330395237,1719346088012,-2798.64,0.00043835,120]
[330395238,1719346088040,-2798.64,0.00043835,120]
[330395239,1719346088068,-2798.64,0.00043835,120]
[330395240,1719346088096,-2798.64,0.00043835,120]
[330395241,1719346088122,-2798.82875076,0.00043835,120]
[330395242,1719346088147,-510.4,0.00043835,120]
[330395243,1719346088172,-510.4,0.00043835,120]
[330395244,1719346088197,-510.4,0.00043835,120]
[330395245,1719346088222,-510.4,0.00043835,120]
[330395246,1719346088248,-510.4,0.00043835,120]
[330395247,1719346088289,-510.4,0.00043835,120]
[330395248,1719346088317,-510.4,0.00043835,120]
[330395249,1719346088346,-510.4,0.00043835,120]
[330395250,1719346088374,-510.4,0.00043835,120]
[330395251,1719346088402,-510.4,0.00043835,120]
[330395252,1719346088430,-510.4,0.00043835,120]
[330395253,1719346088458,-510.4,0.00043835,120]
[330395254,1719346088486,-510.4,0.00043835,120]
[330395255,1719346088516,-510.4,0.00043835,120]
[330395256,1719346088545,-510.4,0.00043835,120]
[330395257,1719346088576,-510.4,0.00043835,120]
[330395258,1719346088604,-510.4,0.00043835,120]
[330395259,1719346088632,-510.4,0.00043835,120]
[330395260,1719346088661,-510.4,0.00043835,120]
[330395261,1719346088689,-510.4,0.00043835,120]
[330395262,1719346088716,-510.4,0.00043835,120]
[330395263,1719346088746,-510.4,0.00043835,120]
[330395264,1719346088775,-510.4,0.00043835,120]
[330395265,1719346088802,-510.50690051,0.00043835,120]
[330395266,1719346088830,-5338.04,0.00043835,120]
[330395267,1719346088863,-200.0,0.00043836,60]
[330395268,1719346088895,-500.0,0.00043836,14]
[330395269,1719346088923,-150.0,0.00043844,30]
[330395270,1719346088952,-3549.64264287,0.00043851,30]
[330395271,1719346088981,-415.64182779,0.00043863,30]
[330395272,1719346089009,-180.23194071,0.00043863,30]
[330395273,1719346089037,-150.0,0.00043864,30]
[330395274,1719346089066,-233.43532079,0.0004388,120]
[330395275,1719346089094,-844.52075291,0.0004388,30]
[330395276,1719346089121,-150.0,0.00043882,30]
[330395277,1719346089150,-150.0,0.00043892,30]
[330395278,1719346089177,-872.42277153,0.000439,120]
[330395279,1719346089209,-190.29395068,0.00043902,30]
[330395280,1719346089239,-415.64182779,0.00043909,30]
[330395281,1719346089270,-180.23194071,0.00043909,30]
[330395282,1719346089299,-150.0,0.0004394,30]
[330395283,1719346089327,-150.0,0.00043942,30]
[330395284,1719346089354,-256.00974718,0.00043948,30]
[330395285,1719346089541,-2722.5,0.00043951,99]
[330395286,1719346089568,-415.64182779,0.00043956,30]
[330395287,1719346089596,-180.23194071,0.00043956,30]
[330395288,1719346089621,-169.25532985,0.00043974,30]
[330395289,1719346089649,-150.0,0.00043988,30]
[330395290,1719346089675,-166.66666666,0.00043989,30]
[330395291,1719346089701,-4571.36837539,0.00044,10]
[330395292,1719346089727,-765.83511751,0.00044,120]
[330395293,1719346089755,-250000.0,0.00044,30]
[330395294,1719346089781,-250.00731244,0.00044,60]
[330395295,1719346089807,-13485.354715,0.00044,50]
[330395296,1719346089834,-679.462983,0.00044,57]
[330395297,1719346089859,-388.72473332,0.00044001,30]
[330395298,1719346089889,-415.64182779,0.00044002,30]
[330395299,1719346089915,-180.23194071,0.00044002,30]
[330395300,1719346089944,-150.0,0.00044003,30]
[330395301,1719346089973,-190.29395068,0.00044012,30]
[330395302,1719346090000,-150.0,0.00044029,30]
[330395303,1719346090025,-155.177234,0.00044034,30]
[330395304,1719346090053,-150.0,0.00044035,30]
[330395305,1719346090085,-415.64182779,0.00044048,30]
[330395306,1719346090112,-180.23194071,0.00044048,30]
[330395307,1719346090146,-150.0,0.00044063,30]
[330395308,1719346090172,-926.0,0.00044064,30]
[330395309,1719346090199,-600.0,0.00044082,30]
[330395310,1719346090225,-150.0,0.00044083,30]
[330395311,1719346090253,-415.64182779,0.00044095,30]
[330395312,1719346090282,-180.23194071,0.00044095,30]
[330395313,1719346090307,-166.6666667,0.00044095,30]
[330395314,1719346090332,-212.80519448,0.00044098,30]
[330395315,1719346090360,-500.0,0.00044109,120]
[330395316,1719346090386,-3401.0,0.00044109,120]
[330395317,1719346090413,-5338.04,0.00044109,120]
[330395318,1719346090440,-1608.2562724,0.00044113,30]
[330395319,1719346090466,-150.0,0.00044124,30]
[330395320,1719346091307,-150.0,0.00044131,30]
[330395321,1719346091811,-415.64182779,0.00044141,30]
[330395322,1719346091838,-180.23194071,0.00044141,30]
[330395323,1719346091863,-1608.2562724,0.00044156,30]
[330395324,1719346091895,-150.0,0.00044163,120]
[330395325,1719346091921,-150.0,0.00044174,120]
[330395326,1719346091946,-150.0,0.00044179,30]
[330395327,1719346091974,-150.0,0.00044184,30]
[330395328,1719346091999,-415.64182779,0.00044188,30]
[330395329,1719346092026,-180.23194071,0.00044188,30]
[330395330,1719346092053,-150.0,0.00044193,30]
[330395331,1719346092078,-1004.48704799,0.000442,120]
[330395332,1719346092105,-1004.48704797,0.000442,120]
[330395333,1719346092130,-1004.48704797,0.000442,120]
[330395334,1719346092158,-1004.48704797,0.000442,120]
[330395335,1719346092183,-1004.48704797,0.000442,120]
[330395336,1719346092211,-1608.2562724,0.00044203,30]
[330395337,1719346092236,-155.177234,0.00044204,30]
[330395338,1719346092263,-256.00974718,0.00044219,30]
[330395339,1719346092291,-3549.64264287,0.00044225,30]
[330395340,1719346092316,-150.0,0.00044227,30]
[330395341,1719346092344,-415.64182779,0.00044234,30]
[330395342,1719346092371,-180.23194071,0.00044234,30]
[330395343,1719346092396,-150.0,0.00044245,30]
[330395344,1719346092423,-572.12138684,0.00044261,30]
[330395345,1719346092450,-172.18888889,0.00044274,120]
[330395346,1719346092475,-150.0,0.00044275,30]
[330395347,1719346092500,-415.64182779,0.00044281,30]
[330395348,1719346092525,-180.23194071,0.00044281,30]
[330395349,1719346092550,-250000.0,0.000443,120]
[330395350,1719346092575,-150.0,0.00044305,30]
[330395351,1719346092599,-155.69335699,0.00044312,30]
[330395352,1719346092622,-572.12138684,0.00044315,30]
[330395353,1719346092647,-256.00974718,0.00044322,30]
[330395354,1719346092671,-150.0,0.00044323,30]
[330395355,1719346092698,-415.64182779,0.00044327,30]
[330395356,1719346092723,-180.23194071,0.00044327,30]
[330395357,1719346092748,-150.97008216,0.00044335,30]
[330395358,1719346092771,-256.00974718,0.00044341,30]
[330395359,1719346092796,-1100.0,0.00044356,30]
[330395360,1719346092830,-206.10897301,0.00044356,30]
[330395361,1719346092862,-150.0,0.00044357,30]
[330395362,1719346092888,-150.0,0.00044366,30]
[330395363,1719346092913,-150.0,0.00044371,30]
[330395364,1719346092938,-415.64182779,0.00044374,30]
[330395365,1719346092964,-180.23194071,0.00044374,30]
[330395366,1719346092989,-194.76,0.0004438,120]
[330395367,1719346093014,-216.95683908,0.0004438,120]